[Event "*** Titled Tuesday Blitz"]
[Site "Chess.com"]
[Date "2018.07.03"]
[Round "5"]
[White "Mikhail_Antipov"]
[Black "Gvalch"]
[Result "1-0"]
[WhiteElo "2829"]
[BlackElo "2622"]
[TimeControl "180+2"]
[EndTime "14:02:42 PDT"]
[Termination "Mikhail_Antipov won by checkmate"]

1. e4 {[%clk 0:02:59.8]} 1... e6 {[%clk 0:03:00.5]} 2. d4 {[%clk 0:03:00.6]}
2... d5 {[%clk 0:03:01.4]} 3. Nd2 {[%clk 0:02:59.2]} 3... Be7 {[%clk 0:03:01.9]}
4. Ngf3 {[%clk 0:02:59.4]} 4... Nf6 {[%clk 0:03:02.3]} 5. e5 {[%clk 0:03:00.2]}
5... Nfd7 {[%clk 0:03:03]} 6. Bd3 {[%clk 0:03:00.3]} 6... c5 {[%clk 0:03:03.9]}
7. c3 {[%clk 0:03:01.8]} 7... Nc6 {[%clk 0:03:05.4]} 8. O-O {[%clk 0:02:56.2]}
8... g5 {[%clk 0:03:06.8]} 9. b4 {[%clk 0:02:56.7]} 9... cxb4 {[%clk 0:03:07]}
10. cxb4 {[%clk 0:02:58.6]} 10... Nxb4 {[%clk 0:03:08.4]} 11. Be2 {[%clk
0:02:59.7]} 11... Nc6 {[%clk 0:03:09.3]} 12. Nb3 {[%clk 0:02:57.5]} 12... h6
{[%clk 0:03:09.8]} 13. Be3 {[%clk 0:02:57.3]} 13... b6 {[%clk 0:03:10.4]} 14.
Ne1 {[%clk 0:02:46.2]} 14... f5 {[%clk 0:02:24.7]} 15. Bh5+ {[%clk 0:02:36.1]}
15... Kf8 {[%clk 0:02:25.1]} 16. f4 {[%clk 0:02:34.8]} 16... g4 {[%clk 0:02:26]}
17. h3 {[%clk 0:01:44.2]} 17... gxh3 {[%clk 0:02:25.9]} 18. g4 {[%clk
0:01:45.4]} 18... Rg8 {[%clk 0:02:21.2]} 19. Kh2 {[%clk 0:01:37.5]} 19... Bh4
{[%clk 0:02:12]} 20. Rg1 {[%clk 0:01:15.8]} 20... Bxe1 {[%clk 0:01:35.7]} 21.
Qxe1 {[%clk 0:01:12.8]} 21... Ne7 {[%clk 0:01:36.3]} 22. Bc1 {[%clk 0:01:03.7]}
22... Rg7 {[%clk 0:01:22.1]} 23. Ba3 {[%clk 0:01:03.7]} 23... Kg8 {[%clk
0:01:23.3]} 24. Qh4 {[%clk 0:00:12.8]} 24... Nc6 {[%clk 0:01:24]} 25. Qxh3
{[%clk 0:00:14]} 25... Nf8 {[%clk 0:01:17.5]} 26. gxf5 {[%clk 0:00:14.5]} 26...
exf5 {[%clk 0:01:18.5]} 27. Rxg7+ {[%clk 0:00:14.6]} 27... Kxg7 {[%clk
0:01:20.4]} 28. Rg1+ {[%clk 0:00:15.5]} 28... Kh7 {[%clk 0:01:20.9]} 29. Bf7
{[%clk 0:00:14.7]} 29... Qd7 {[%clk 0:00:47.1]} 30. Bxf8 {[%clk 0:00:09.6]}
30... Qxf7 {[%clk 0:00:46.8]} 31. Qxh6# {[%clk 0:00:10.4]} 1-0

[Event "*** Titled Tuesday Blitz"]
[Site "Chess.com"]
[Date "2018.07.03"]
[Round "5"]
[White "bugsbunny444"]
[Black "DishonorOnYourCow"]
[Result "1-0"]
[WhiteElo "2378"]
[BlackElo "2237"]
[TimeControl "180+2"]
[EndTime "14:02:44 PDT"]
[Termination "bugsbunny444 won by resignation"]

1. Nf3 {[%clk 0:03:01.9]} 1... Nf6 {[%clk 0:02:58.8]} 2. c4 {[%clk 0:03:02.4]}
2... g6 {[%clk 0:03:00.7]} 3. b4 {[%clk 0:03:03.1]} 3... Bg7 {[%clk 0:02:58.2]}
4. Bb2 {[%clk 0:03:04]} 4... a5 {[%clk 0:02:56.7]} 5. b5 {[%clk 0:03:04.8]} 5...
O-O {[%clk 0:02:56]} 6. g3 {[%clk 0:03:06.2]} 6... d5 {[%clk 0:02:57]} 7. cxd5
{[%clk 0:03:06.7]} 7... Qxd5 {[%clk 0:02:58.4]} 8. a4 {[%clk 0:03:03.9]} 8... c6
{[%clk 0:02:51]} 9. Bg2 {[%clk 0:03:02.8]} 9... cxb5 {[%clk 0:02:49.9]} 10. Nc3
{[%clk 0:03:03.5]} 10... Qd8 {[%clk 0:02:49.6]} 11. Nxb5 {[%clk 0:03:01.5]}
11... Nc6 {[%clk 0:02:42.8]} 12. O-O {[%clk 0:03:00.4]} 12... Bf5 {[%clk
0:02:33.5]} 13. d3 {[%clk 0:02:59.5]} 13... Nb4 {[%clk 0:02:26.2]} 14. Nfd4
{[%clk 0:02:55]} 14... Bc8 {[%clk 0:02:03]} 15. Nc2 {[%clk 0:02:30.6]} 15...
Nfd5 {[%clk 0:01:42.3]} 16. Bxg7 {[%clk 0:02:23.3]} 16... Kxg7 {[%clk
0:01:44.2]} 17. Nxb4 {[%clk 0:02:13.8]} 17... Nxb4 {[%clk 0:01:35]} 18. Qb3
{[%clk 0:01:59.5]} 18... Kg8 {[%clk 0:01:24.7]} 19. Rfc1 {[%clk 0:01:54.3]}
19... Be6 {[%clk 0:01:24.1]} 20. Qb2 {[%clk 0:01:43.5]} 20... Bd5 {[%clk
0:01:08.8]} 21. Nc7 {[%clk 0:01:38.2]} 21... Bxg2 {[%clk 0:00:48.7]} 22. Kxg2
{[%clk 0:01:38]} 22... Rc8 {[%clk 0:00:42.3]} 23. Qe5 {[%clk 0:01:33.6]} 23...
Nc6 {[%clk 0:00:40]} 24. Rxc6 {[%clk 0:00:54.1]} 24... bxc6 {[%clk 0:00:40.5]}
25. Na6 {[%clk 0:00:54.1]} 25... Qd6 {[%clk 0:00:38.3]} 26. Qxa5 {[%clk
0:00:23.6]} 26... Ra8 {[%clk 0:00:37.7]} 27. Rb1 {[%clk 0:00:24.7]} 27... c5
{[%clk 0:00:19.5]} 28. Rb6 {[%clk 0:00:25.2]} 28... Qd5+ {[%clk 0:00:19.7]} 29.
f3 {[%clk 0:00:26.5]} 29... c4 {[%clk 0:00:17.9]} 30. Qxd5 {[%clk 0:00:26.7]}
1-0

[Event "*** Titled Tuesday Blitz"]
[Site "Chess.com"]
[Date "2018.07.03"]
[Round "5"]
[White "Mimsychess"]
[Black "Martins-BR"]
[Result "1-0"]
[WhiteElo "2304"]
[BlackElo "2322"]
[TimeControl "180+2"]
[EndTime "14:03:01 PDT"]
[Termination "Mimsychess won by resignation"]

1. e4 {[%clk 0:02:57]} 1... c5 {[%clk 0:03:00.2]} 2. Nf3 {[%clk 0:02:57.1]} 2...
e6 {[%clk 0:03:01]} 3. d4 {[%clk 0:02:56.5]} 3... cxd4 {[%clk 0:03:01.9]} 4.
Nxd4 {[%clk 0:02:58.4]} 4... Nc6 {[%clk 0:03:02.4]} 5. Nc3 {[%clk 0:02:58.3]}
5... Qc7 {[%clk 0:03:03.2]} 6. Be3 {[%clk 0:02:58.4]} 6... a6 {[%clk 0:03:04.1]}
7. Qd2 {[%clk 0:02:59.2]} 7... Nf6 {[%clk 0:03:03.9]} 8. O-O-O {[%clk
0:02:55.4]} 8... Be7 {[%clk 0:03:04.2]} 9. f4 {[%clk 0:02:56.4]} 9... b5 {[%clk
0:03:03.7]} 10. e5 {[%clk 0:02:50.1]} 10... b4 {[%clk 0:03:04.1]} 11. Ncb5
{[%clk 0:02:33.3]} 11... axb5 {[%clk 0:03:04.4]} 12. Nxb5 {[%clk 0:02:34.8]}
12... Qa5 {[%clk 0:03:03.9]} 13. exf6 {[%clk 0:02:34.6]} 13... gxf6 {[%clk
0:03:04]} 14. Bc4 {[%clk 0:02:28.8]} 14... d5 {[%clk 0:02:57.3]} 15. Bd3 {[%clk
0:01:39.9]} 15... Qxa2 {[%clk 0:02:49.3]} 16. Qf2 {[%clk 0:01:40.9]} 16... Kd7
{[%clk 0:02:02]} 17. Kd2 {[%clk 0:01:31.1]} 17... b3 {[%clk 0:01:37.9]} 18. Ra1
{[%clk 0:01:21.2]} 18... Bb4+ {[%clk 0:01:29.8]} 19. Ke2 {[%clk 0:01:18.8]}
19... Qxa1 {[%clk 0:01:27.4]} 20. Rxa1 {[%clk 0:01:20.7]} 20... Rxa1 {[%clk
0:01:27.6]} 21. c3 {[%clk 0:01:05.1]} 21... Be7 {[%clk 0:01:24.9]} 22. Bc5
{[%clk 0:01:02]} 22... Ra2 {[%clk 0:01:21.2]} 23. Kf3 {[%clk 0:00:59.7]} 23...
Bb7 {[%clk 0:00:51.6]} 24. Bxe7 {[%clk 0:00:54.9]} 24... Nxe7 {[%clk 0:00:52.4]}
25. Qb6 {[%clk 0:00:56]} 25... Bc6 {[%clk 0:00:47.7]} 26. Qc7+ {[%clk
0:00:51.5]} 26... Ke8 {[%clk 0:00:48.4]} 27. Nd6+ {[%clk 0:00:48.9]} 27... Kf8
{[%clk 0:00:48.2]} 28. Qd8+ {[%clk 0:00:50.3]} 28... Kg7 {[%clk 0:00:48.6]} 29.
Qxe7 {[%clk 0:00:52.2]} 29... d4+ {[%clk 0:00:48.1]} 30. Be4 {[%clk 0:00:53.5]}
30... Bxe4+ {[%clk 0:00:46.3]} 31. Nxe4 {[%clk 0:00:49.3]} 31... dxc3 {[%clk
0:00:38]} 32. Qxf6+ {[%clk 0:00:47.6]} 32... Kg8 {[%clk 0:00:39]} 33. Qd8+
{[%clk 0:00:35.4]} 33... Kg7 {[%clk 0:00:38.8]} 34. Qd4+ {[%clk 0:00:37.3]}
34... Kg8 {[%clk 0:00:32.9]} 35. Nf6+ {[%clk 0:00:37.7]} 35... Kf8 {[%clk
0:00:33.3]} 36. Qd8+ {[%clk 0:00:28.9]} 36... Kg7 {[%clk 0:00:32.8]} 37. Nh5+
{[%clk 0:00:30.8]} 1-0

[Event "*** Titled Tuesday Blitz"]
[Site "Chess.com"]
[Date "2018.07.03"]
[Round "5"]
[White "Roachelley"]
[Black "dachessmandan"]
[Result "0-1"]
[WhiteElo "2301"]
[BlackElo "2429"]
[TimeControl "180+2"]
[EndTime "14:03:02 PDT"]
[Termination "dachessmandan won by checkmate"]

1. e4 {[%clk 0:03:01.8]} 1... e5 {[%clk 0:03:00.5]} 2. Nf3 {[%clk 0:03:02.9]}
2... Nc6 {[%clk 0:03:01.4]} 3. Bb5 {[%clk 0:03:04.4]} 3... a6 {[%clk 0:03:01.9]}
4. Ba4 {[%clk 0:03:05.5]} 4... Nf6 {[%clk 0:03:02.5]} 5. O-O {[%clk 0:03:02.5]}
5... b5 {[%clk 0:03:03.5]} 6. Bb3 {[%clk 0:03:02.3]} 6... Be7 {[%clk 0:03:05.1]}
7. Re1 {[%clk 0:02:58.1]} 7... d6 {[%clk 0:03:05.8]} 8. c3 {[%clk 0:02:55.1]}
8... O-O {[%clk 0:03:06.6]} 9. h3 {[%clk 0:02:55.5]} 9... Na5 {[%clk 0:03:07.7]}
10. Bc2 {[%clk 0:02:56.2]} 10... c5 {[%clk 0:03:09.3]} 11. d4 {[%clk 0:02:56.8]}
11... Qc7 {[%clk 0:03:10.7]} 12. d5 {[%clk 0:02:56.9]} 12... Bd7 {[%clk
0:03:10.7]} 13. Nbd2 {[%clk 0:02:57.2]} 13... Nb7 {[%clk 0:03:11.7]} 14. Nf1
{[%clk 0:02:58]} 14... Nd8 {[%clk 0:03:12.7]} 15. Ng3 {[%clk 0:02:58.5]} 15...
Ne8 {[%clk 0:03:13.6]} 16. Be3 {[%clk 0:02:57]} 16... g6 {[%clk 0:03:13.6]} 17.
Bh6 {[%clk 0:02:55.2]} 17... Ng7 {[%clk 0:03:14.5]} 18. Qd2 {[%clk 0:02:55.1]}
18... f6 {[%clk 0:03:15.1]} 19. Rad1 {[%clk 0:02:47.2]} 19... Nf7 {[%clk
0:03:15.1]} 20. Be3 {[%clk 0:02:46]} 20... f5 {[%clk 0:03:00.3]} 21. exf5 {[%clk
0:02:45.7]} 21... gxf5 {[%clk 0:02:59.1]} 22. Bh6 {[%clk 0:02:41.2]} 22... Nxh6
{[%clk 0:02:44.4]} 23. Qxh6 {[%clk 0:02:41]} 23... Rf6 {[%clk 0:02:46]} 24. Qg5
{[%clk 0:02:26.6]} 24... Re8 {[%clk 0:02:06.8]} 25. Qd2 {[%clk 0:01:55.7]} 25...
Qc8 {[%clk 0:01:57]} 26. Bb1 {[%clk 0:01:36.1]} 26... Ref8 {[%clk 0:01:57]} 27.
Ng5 {[%clk 0:01:33.8]} 27... Rg6 {[%clk 0:01:52.4]} 28. Nf3 {[%clk 0:01:15.7]}
28... e4 {[%clk 0:01:53.3]} 29. Nh2 {[%clk 0:01:11.9]} 29... Bg5 {[%clk
0:01:52]} 30. Qe2 {[%clk 0:01:09.9]} 30... Bh4 {[%clk 0:01:33.2]} 31. Nh5 {[%clk
0:01:03.9]} 31... Nxh5 {[%clk 0:01:09.2]} 32. Qxh5 {[%clk 0:01:02.4]} 32... Qd8
{[%clk 0:01:10.8]} 33. Kf1 {[%clk 0:00:43.7]} 33... Bg5 {[%clk 0:01:07.4]} 34.
Qe2 {[%clk 0:00:18.8]} 34... Bf4 {[%clk 0:01:08.2]} 35. g3 {[%clk 0:00:19.6]}
35... Be5 {[%clk 0:01:09.5]} 36. Qe3 {[%clk 0:00:17.5]} 36... f4 {[%clk
0:01:04.1]} 37. gxf4 {[%clk 0:00:14.1]} 37... Bxf4 {[%clk 0:01:06]} 38. Qxe4
{[%clk 0:00:14]} 38... Bxh3+ {[%clk 0:01:05.7]} 39. Ke2 {[%clk 0:00:14.5]} 39...
Re8 {[%clk 0:01:06.9]} 40. Kd3 {[%clk 0:00:15.5]} 40... Rxe4 {[%clk 0:01:06.7]}
41. Kxe4 {[%clk 0:00:17.4]} 41... Bxh2 {[%clk 0:01:05.7]} 42. f4 {[%clk
0:00:15.8]} 42... Bg2+ {[%clk 0:01:04.2]} 43. Kf5 {[%clk 0:00:16.4]} 43... Qf6#
{[%clk 0:01:02.3]} 0-1

[Event "*** Titled Tuesday Blitz"]
[Site "Chess.com"]
[Date "2018.07.03"]
[Round "5"]
[White "NateSolon"]
[Black "rekosheten"]
[Result "1-0"]
[WhiteElo "2402"]
[BlackElo "2355"]
[TimeControl "180+2"]
[EndTime "14:03:07 PDT"]
[Termination "NateSolon won on time"]

1. d4 {[%clk 0:03:01.9]} 1... Nf6 {[%clk 0:02:59.6]} 2. Bg5 {[%clk 0:03:01.9]}
2... Ne4 {[%clk 0:03:00.2]} 3. Bf4 {[%clk 0:03:03]} 3... c5 {[%clk 0:03:00.6]}
4. f3 {[%clk 0:03:04.1]} 4... Qa5+ {[%clk 0:03:00.6]} 5. c3 {[%clk 0:03:05.1]}
5... Nf6 {[%clk 0:03:01.2]} 6. Nd2 {[%clk 0:03:06.1]} 6... cxd4 {[%clk
0:02:58.4]} 7. Nb3 {[%clk 0:03:06.8]} 7... Qf5 {[%clk 0:02:58.2]} 8. Bxb8 {[%clk
0:03:03.4]} 8... Rxb8 {[%clk 0:03:00.1]} 9. Qxd4 {[%clk 0:03:01]} 9... b6 {[%clk
0:02:57.4]} 10. e4 {[%clk 0:03:00]} 10... Qh5 {[%clk 0:02:04.4]} 11. Ne2 {[%clk
0:02:45.9]} 11... e5 {[%clk 0:01:20.5]} 12. Qa4 {[%clk 0:02:46.5]} 12... a6
{[%clk 0:01:13.2]} 13. Ng3 {[%clk 0:02:46.1]} 13... Qh6 {[%clk 0:01:08.6]} 14.
Nf5 {[%clk 0:02:42.7]} 14... Qg5 {[%clk 0:01:04]} 15. h4 {[%clk 0:02:34.2]}
15... Qf4 {[%clk 0:00:50.8]} 16. Nd2 {[%clk 0:02:25.6]} 16... b5 {[%clk
0:00:46.5]} 17. Qc2 {[%clk 0:02:18.9]} 17... Nh5 {[%clk 0:00:45.6]} 18. Rh3
{[%clk 0:02:06.1]} 18... d5 {[%clk 0:00:40.1]} 19. O-O-O {[%clk 0:01:38.5]}
19... g6 {[%clk 0:00:22.3]} 20. g3 {[%clk 0:01:31]} 20... Nxg3 {[%clk
0:00:22.1]} 21. Rxg3 {[%clk 0:01:11.2]} 21... gxf5 {[%clk 0:00:22.3]} 22. Rg1
{[%clk 0:01:10.6]} 22... fxe4 {[%clk 0:00:16.3]} 23. fxe4 {[%clk 0:01:12.5]}
23... dxe4 {[%clk 0:00:13.3]} 24. Kb1 {[%clk 0:01:13]} 24... Bf5 {[%clk
0:00:13.9]} 25. Bh3 {[%clk 0:00:59.7]} 25... Bxh3 {[%clk 0:00:14.4]} 26. Ka1
{[%clk 0:00:59.5]} 26... e3 {[%clk 0:00:13.9]} 27. Nb3 {[%clk 0:00:54.8]} 27...
Bh6 {[%clk 0:00:11]} 28. Qe2 {[%clk 0:00:55]} 28... Kf8 {[%clk 0:00:09.5]} 29.
Nc5 {[%clk 0:00:54.7]} 29... Re8 {[%clk 0:00:06.3]} 30. Qh5 {[%clk 0:00:50]}
30... a5 {[%clk 0:00:04.7]} 31. a3 {[%clk 0:00:47]} 31... b4 {[%clk 0:00:04.6]}
32. Nd3 {[%clk 0:00:47.8]} 32... Qf6 {[%clk 0:00:04.3]} 33. cxb4 {[%clk
0:00:43.5]} 33... axb4 {[%clk 0:00:06.2]} 34. a4 {[%clk 0:00:44.8]} 34... e4
{[%clk 0:00:06.1]} 35. Nc5 {[%clk 0:00:46.2]} 35... Ra8 {[%clk 0:00:03.7]} 36.
Qd5 {[%clk 0:00:46]} 1-0

[Event "*** Titled Tuesday Blitz"]
[Site "Chess.com"]
[Date "2018.07.03"]
[Round "5"]
[White "Kimster98"]
[Black "Genghis_K"]
[Result "0-1"]
[WhiteElo "2505"]
[BlackElo "2713"]
[TimeControl "180+2"]
[EndTime "14:03:19 PDT"]
[Termination "Genghis_K won on time"]

1. Nf3 {[%clk 0:02:58.9]} 1... Nf6 {[%clk 0:02:59.7]} 2. c4 {[%clk 0:02:59.6]}
2... g6 {[%clk 0:02:57.5]} 3. g3 {[%clk 0:02:58]} 3... b6 {[%clk 0:02:56.7]} 4.
Bg2 {[%clk 0:02:59.9]} 4... Bb7 {[%clk 0:02:57.5]} 5. b3 {[%clk 0:03:01.4]} 5...
Bg7 {[%clk 0:02:58.6]} 6. Bb2 {[%clk 0:03:01.6]} 6... O-O {[%clk 0:03:00.1]} 7.
O-O {[%clk 0:03:02.4]} 7... d6 {[%clk 0:02:54.5]} 8. d4 {[%clk 0:03:00.9]} 8...
Nbd7 {[%clk 0:02:54.7]} 9. Nc3 {[%clk 0:02:58.4]} 9... Ne4 {[%clk 0:02:55.3]}
10. Nxe4 {[%clk 0:02:53.3]} 10... Bxe4 {[%clk 0:02:55.9]} 11. Nd2 {[%clk
0:02:54.9]} 11... Bxg2 {[%clk 0:02:55]} 12. Kxg2 {[%clk 0:02:56.8]} 12... c5
{[%clk 0:02:56.1]} 13. Nf3 {[%clk 0:02:56.2]} 13... Qc7 {[%clk 0:02:52.1]} 14.
Rc1 {[%clk 0:02:44.8]} 14... Rfe8 {[%clk 0:02:46.3]} 15. Qd2 {[%clk 0:02:43.9]}
15... a6 {[%clk 0:02:44.6]} 16. d5 {[%clk 0:02:30.7]} 16... Bxb2 {[%clk
0:02:22.9]} 17. Qxb2 {[%clk 0:02:32.4]} 17... b5 {[%clk 0:02:22.7]} 18. Qc3
{[%clk 0:02:31.2]} 18... Rab8 {[%clk 0:02:21.6]} 19. Nd2 {[%clk 0:02:27.1]}
19... e5 {[%clk 0:02:15.6]} 20. e4 {[%clk 0:02:22.4]} 20... f5 {[%clk
0:02:12.8]} 21. f4 {[%clk 0:02:20.6]} 21... Rf8 {[%clk 0:02:13.7]} 22. Nf3
{[%clk 0:02:07.7]} 22... bxc4 {[%clk 0:01:58.8]} 23. fxe5 {[%clk 0:01:18.5]}
23... dxe5 {[%clk 0:01:37.8]} 24. Ng5 {[%clk 0:00:58.2]} 24... Qd6 {[%clk
0:01:27.2]} 25. Ne6 {[%clk 0:00:50.8]} 25... Rf7 {[%clk 0:01:13.1]} 26. Qxc4
{[%clk 0:00:46.4]} 26... Rb4 {[%clk 0:01:11.4]} 27. Qc2 {[%clk 0:00:36.9]} 27...
Rxe4 {[%clk 0:01:07.2]} 28. Nxc5 {[%clk 0:00:36.9]} 28... Rd4 {[%clk 0:00:56.1]}
29. Nxd7 {[%clk 0:00:21.5]} 29... Qxd5+ {[%clk 0:00:55.6]} 30. Kg1 {[%clk
0:00:22.1]} 30... Rxd7 {[%clk 0:00:52.9]} 31. Qc8+ {[%clk 0:00:22.4]} 31... Kg7
{[%clk 0:00:54.3]} 32. Qc6 {[%clk 0:00:22.3]} 32... Rd2 {[%clk 0:00:50.2]} 33.
Qxd5 {[%clk 0:00:21]} 33... R7xd5 {[%clk 0:00:51.6]} 34. Rc7+ {[%clk 0:00:14.2]}
34... Kh6 {[%clk 0:00:52.4]} 35. a4 {[%clk 0:00:06.3]} 35... Rb2 {[%clk
0:00:52.8]} 36. Rf2 {[%clk 0:00:04.9]} 36... Rxb3 {[%clk 0:00:51.2]} 37. Ra7
{[%clk 0:00:02.9]} 37... a5 {[%clk 0:00:51.1]} 0-1

[Event "*** Titled Tuesday Blitz"]
[Site "Chess.com"]
[Date "2018.07.03"]
[Round "5"]
[White "Mikhail_Golubev"]
[Black "Sordis"]
[Result "0-1"]
[WhiteElo "2367"]
[BlackElo "2277"]
[TimeControl "180+2"]
[EndTime "14:03:20 PDT"]
[Termination "Sordis won on time"]

1. e4 {[%clk 0:02:52.7]} 1... c5 {[%clk 0:02:58.7]} 2. Nf3 {[%clk 0:02:52.4]}
2... d6 {[%clk 0:02:59.8]} 3. d4 {[%clk 0:02:53.3]} 3... cxd4 {[%clk 0:03:01.7]}
4. Nxd4 {[%clk 0:02:54]} 4... Nf6 {[%clk 0:03:03.1]} 5. Nc3 {[%clk 0:02:54.9]}
5... g6 {[%clk 0:03:04.4]} 6. Be3 {[%clk 0:02:55.4]} 6... Bg7 {[%clk 0:03:05.7]}
7. f3 {[%clk 0:02:56.5]} 7... O-O {[%clk 0:03:07.1]} 8. Qd2 {[%clk 0:02:57.4]}
8... Nc6 {[%clk 0:03:08.4]} 9. O-O-O {[%clk 0:02:57.1]} 9... d5 {[%clk
0:03:08.8]} 10. Qe1 {[%clk 0:02:57.1]} 10... e6 {[%clk 0:03:09.2]} 11. h4 {[%clk
0:02:54.5]} 11... Qc7 {[%clk 0:03:09.1]} 12. Ndb5 {[%clk 0:02:39.5]} 12... Qb8
{[%clk 0:03:08.3]} 13. exd5 {[%clk 0:02:19.1]} 13... exd5 {[%clk 0:03:09.1]} 14.
Bc5 {[%clk 0:02:00.4]} 14... Qf4+ {[%clk 0:02:41]} 15. Kb1 {[%clk 0:01:55]}
15... Re8 {[%clk 0:02:39.1]} 16. Qf2 {[%clk 0:01:54]} 16... a6 {[%clk
0:02:11.1]} 17. g3 {[%clk 0:01:53.4]} 17... Qe5 {[%clk 0:02:01.5]} 18. Bd6
{[%clk 0:01:41]} 18... Qe6 {[%clk 0:02:00.9]} 19. Bh3 {[%clk 0:01:41.3]} 19...
Qe3 {[%clk 0:01:57.4]} 20. Qxe3 {[%clk 0:01:38.8]} 20... Rxe3 {[%clk 0:01:59.3]}
21. Nc7 {[%clk 0:01:38.2]} 21... Bxh3 {[%clk 0:01:45.8]} 22. Nxa8 {[%clk
0:01:20.9]} 22... Bg2 {[%clk 0:01:43.9]} 23. Rhe1 {[%clk 0:01:17]} 23... Rxe1
{[%clk 0:01:44.4]} 24. Rxe1 {[%clk 0:01:03.4]} 24... Bxf3 {[%clk 0:01:45.4]} 25.
Nb6 {[%clk 0:01:01.2]} 25... h5 {[%clk 0:01:39.7]} 26. Rf1 {[%clk 0:00:58.3]}
26... Bg2 {[%clk 0:01:36.9]} 27. Rf2 {[%clk 0:00:43.2]} 27... Bh1 {[%clk
0:01:37.8]} 28. Nc8 {[%clk 0:00:36.8]} 28... Ne4 {[%clk 0:01:32.7]} 29. Nxe4
{[%clk 0:00:36.1]} 29... Bxe4 {[%clk 0:01:34.6]} 30. Bf4 {[%clk 0:00:20.8]}
30... Bf5 {[%clk 0:00:57.1]} 31. Nd6 {[%clk 0:00:20.5]} 31... Be6 {[%clk
0:00:58.3]} 32. Nxb7 {[%clk 0:00:21]} 32... Nd4 {[%clk 0:00:52.7]} 33. Rd2
{[%clk 0:00:10.3]} 33... Nf3 {[%clk 0:00:40.6]} 34. Rd3 {[%clk 0:00:10.3]} 34...
Ne1 {[%clk 0:00:34.7]} 0-1

[Event "*** Titled Tuesday Blitz"]
[Site "Chess.com"]
[Date "2018.07.03"]
[Round "5"]
[White "SamCopeland"]
[Black "BillForster"]
[Result "1/2-1/2"]
[WhiteElo "1962"]
[BlackElo "1706"]
[TimeControl "180+2"]
[EndTime "14:03:21 PDT"]
[Termination "Game drawn by repetition"]

1. e4 {[%clk 0:03:01.9]} 1... c5 {[%clk 0:02:59.7]} 2. Nf3 {[%clk 0:03:01.6]}
2... a6 {[%clk 0:03:00.3]} 3. d4 {[%clk 0:03:03.1]} 3... cxd4 {[%clk 0:03:00.2]}
4. Nxd4 {[%clk 0:03:05]} 4... e5 {[%clk 0:03:00.8]} 5. Nb3 {[%clk 0:02:09.6]}
5... Nf6 {[%clk 0:02:59.4]} 6. Bg5 {[%clk 0:02:09.4]} 6... Be7 {[%clk
0:02:22.6]} 7. Nc3 {[%clk 0:02:05.1]} 7... O-O {[%clk 0:02:20.5]} 8. Qd2 {[%clk
0:01:55.3]} 8... Nc6 {[%clk 0:02:18.8]} 9. Be2 {[%clk 0:01:47.7]} 9... d6 {[%clk
0:01:33.4]} 10. Rd1 {[%clk 0:01:37.6]} 10... Be6 {[%clk 0:01:08.7]} 11. O-O
{[%clk 0:01:27.3]} 11... Kh8 {[%clk 0:01:07.4]} 12. Bxf6 {[%clk 0:01:23.8]}
12... gxf6 {[%clk 0:01:07.2]} 13. f4 {[%clk 0:01:15.5]} 13... f5 {[%clk
0:00:51.4]} 14. exf5 {[%clk 0:01:10.1]} 14... Bxf5 {[%clk 0:00:49.1]} 15. fxe5
{[%clk 0:01:10.5]} 15... Bg5 {[%clk 0:00:43.8]} 16. Qxd6 {[%clk 0:00:48.9]}
16... Qb6+ {[%clk 0:00:38]} 17. Qc5 {[%clk 0:00:40.6]} 17... Qxc5+ {[%clk
0:00:30.4]} 18. Nxc5 {[%clk 0:00:39.7]} 18... Bxc2 {[%clk 0:00:22.4]} 19. Rd5
{[%clk 0:00:32.2]} 19... Nb4 {[%clk 0:00:18.1]} 20. Nd7 {[%clk 0:00:21.4]} 20...
Nxd5 {[%clk 0:00:14.4]} 21. Nxd5 {[%clk 0:00:18]} 21... Rfd8 {[%clk 0:00:10.1]}
22. N7f6 {[%clk 0:00:18.1]} 22... Bxf6 {[%clk 0:00:06.7]} 23. Nxf6 {[%clk
0:00:20]} 23... Rd2 {[%clk 0:00:05]} 24. Bc4 {[%clk 0:00:20.2]} 24... Rad8
{[%clk 0:00:03.2]} 25. Bxf7 {[%clk 0:00:19.2]} 25... R8d4 {[%clk 0:00:03.1]} 26.
e6 {[%clk 0:00:18.4]} 26... Re2 {[%clk 0:00:02.3]} 27. Rc1 {[%clk 0:00:15.2]}
27... Rdd2 {[%clk 0:00:03]} 28. e7 {[%clk 0:00:11.1]} 28... Rxg2+ {[%clk
0:00:04.8]} 29. Kh1 {[%clk 0:00:11.6]} 29... Rxh2+ {[%clk 0:00:05.6]} 30. Kg1
{[%clk 0:00:12.8]} 30... Rhg2+ {[%clk 0:00:06.4]} 31. Kh1 {[%clk 0:00:14]} 31...
Rh2+ {[%clk 0:00:07.3]} 32. Kg1 {[%clk 0:00:15.3]} 32... Rhg2+ {[%clk
0:00:08.3]} 33. Kh1 {[%clk 0:00:16.3]} 33... Rh2+ {[%clk 0:00:09.2]} 1/2-1/2